fUSD/lending_fUSD_20241119
["ID","MTS","AMOUNT","RATE_DAILY","PERIOD"]
[342662754,1732027901407,-50000.0,0.0003588,6]
[342662755,1732027901417,-181.111913,0.00035898,60]
[342662756,1732027901428,-1000.0,0.00035965,14]
[342662757,1732027901438,-181.111913,0.00035998,60]
[342662758,1732027901449,-50000.0,0.00036,26]
[342662759,1732027901459,-50000.0,0.00036,36]
[342662760,1732027901470,-6722.50505483,0.00036,14]
[342662761,1732027901479,-307.96,0.00036,10]
[342662762,1732027901488,-1800.0,0.00036,37]
[342662763,1732027901498,-29500.0,0.00036,60]
[342662764,1732027901509,-11148.47495587,0.00036,7]
[342662765,1732027901518,-150.0,0.00036,2]
[342662766,1732027901527,-2879.75704523,0.00036,5]
[342662767,1732027901540,-722.28808482,0.00036,120]
[342662768,1732027901549,-1800.0,0.00036,37]
[342662769,1732027901559,-500.0,0.00036,120]
[342662770,1732027901568,-500.0,0.00036,120]
[342662771,1732027901578,-320.66750748,0.00036,120]
[342662772,1732027901588,-2050.0,0.00036,2]
[342662773,1732027901598,-250.0,0.00036,30]
[342662774,1732027901608,-210.0,0.00036,2]
[342662775,1732027901619,-151.0,0.00036027,120]
[342662776,1732027901629,-1000.0,0.00036065,14]
[342662777,1732027901639,-181.111913,0.00036098,90]
[342662778,1732027901649,-447.48640307,0.00036101,7]
[342662779,1732027901660,-160.20028232,0.00036101,7]
[342662780,1732027901671,-195.78455287,0.00036101,7]
[342662781,1732027901680,-1934.98,0.00036125,2]
[342662782,1732027901689,-433.37,0.00036125,2]
[342662783,1732027901699,-1000.0,0.00036164,14]
[342662784,1732027901709,-181.111913,0.00036198,90]
[342662785,1732027901719,-1000.0,0.00036264,14]
[342662786,1732027901729,-181.111913,0.00036298,90]
[342662787,1732027901741,-1009.82,0.000363,12]
[342662788,1732027901751,-1000.0,0.00036364,14]
[342662789,1732027901761,-2000.0,0.00036376,120]
[342662790,1732027901772,-447.48640307,0.00036395,7]
[342662791,1732027901782,-160.20028232,0.00036395,7]
[342662792,1732027901795,-195.78455287,0.00036395,7]
[342662793,1732027901804,-181.111913,0.00036398,90]
[342662794,1732027901814,-57000.0,0.0003645,8]
[342662795,1732027901823,-1000.0,0.00036463,14]
[342662796,1732027901833,-424.03904319,0.00036493,120]
[342662797,1732027901843,-181.111913,0.00036498,90]
[342662798,1732027901852,-4000.0,0.000365,30]
[342662799,1732027901862,-14300.66957902,0.000365,20]
[342662800,1732027901872,-150.0,0.00036503,120]
[342662801,1732027901882,-1058.71,0.00036561,2]
[342662802,1732027901892,-1000.0,0.00036563,14]
[342662803,1732027901902,-181.111913,0.00036598,90]
[342662804,1732027901911,-150.0,0.00036621,7]
[342662805,1732027901921,-1000.0,0.00036663,14]
[342662806,1732027901932,-447.48640307,0.00036688,7]
[342662807,1732027901943,-160.20028232,0.00036688,7]
[342662808,1732027901952,-195.78455287,0.00036688,7]
[342662809,1732027901962,-181.111913,0.00036698,90]
[342662810,1732027901972,-500.0,0.00036711,60]
[342662811,1732027901981,-500.0,0.00036711,60]
[342662812,1732027901991,-150.0,0.00036711,120]
[342662813,1732027902000,-150.0,0.00036733,7]
[342662814,1732027902009,-1000.0,0.00036762,14]
[342662815,1732027902019,-150.0,0.00036786,7]
[342662816,1732027902028,-181.111913,0.00036798,90]
[342662817,1732027902040,-2000.0,0.000368,30]
[342662818,1732027902050,-51776.0,0.0003685,7]
[342662819,1732027902060,-1000.0,0.00036862,14]
[342662820,1732027902069,-2000.0,0.0003689,120]
[342662821,1732027902079,-181.111913,0.00036898,90]
[342662822,1732027902088,-166.92609,0.000369,120]
[342662823,1732027902097,-150.0,0.0003694,7]
[342662824,1732027902107,-1000.0,0.00036961,14]
[342662825,1732027902117,-447.48640307,0.00036982,7]
[342662826,1732027902127,-160.20028232,0.00036982,7]
[342662827,1732027902136,-195.78455287,0.00036982,7]
[342662828,1732027902145,-500.0,0.00036986,120]
[342662829,1732027902155,-502.0,0.00036986,120]
[342662830,1732027902164,-607.0,0.00036986,120]
[342662831,1732027902174,-500.0,0.00036986,13]
[342662832,1732027902183,-172.0,0.00036986,13]
[342662833,1732027902192,-4125.24,0.00036986,57]
[342662834,1732027902201,-181.111913,0.00036998,90]
[342662835,1732027902211,-50000.0,0.00037,27]
[342662836,1732027902222,-50000.0,0.00037,37]
[342662837,1732027902235,-200.0,0.00037,2]
[342662838,1732027902245,-151138.79382713,0.00037,2]
[342662839,1732027902254,-8070.35073553,0.00037,2]
[342662840,1732027902263,-654.37618539,0.00037,90]
[342662841,1732027902273,-1800.0,0.00037,38]
[342662842,1732027902283,-500.0,0.00037,120]
[342662843,1732027902295,-1000.0,0.00037,60]
[342662844,1732027902305,-200.29,0.00037,10]
[342662845,1732027902314,-2023.25494329,0.00037,2]
[342662846,1732027902324,-413.467,0.00037,2]
[342662847,1732027902335,-1561.61,0.00037,2]
[342662848,1732027902346,-3747.0,0.00037,2]
[342662849,1732027902357,-814.0,0.00037,2]
[342662850,1732027902366,-1260.0,0.00037,2]
[342662851,1732027902376,-1075.0,0.00037042,30]
[342662852,1732027902387,-1000.0,0.00037061,14]
[342662853,1732027902396,-181.111913,0.00037098,120]
[342662854,1732027902405,-2015.04873619,0.00037109,60]
[342662855,1732027902415,-1000.0,0.00037161,14]
[342662856,1732027902425,-942.48,0.00037161,2]
[342662857,1732027902434,-181.111913,0.00037198,120]
[342662858,1732027902444,-2442.46293678,0.000372,22]
[342662859,1732027902453,-250.0,0.000372,2]
[342662860,1732027902462,-250.0,0.000372,7]
[342662861,1732027902472,-250.0,0.000372,15]
[342662862,1732027902481,-647.99569865,0.000372,103]
[342662863,1732027902491,-647.99569865,0.000372,103]
[342662864,1732027902500,-647.99569865,0.000372,103]
[342662865,1732027902510,-647.99569865,0.000372,103]
[342662866,1732027902520,-647.99569865,0.000372,103]
[342662867,1732027902530,-7577.9,0.00037241,117]
[342662868,1732027902542,-1000.0,0.0003726,14]
[342662869,1732027902552,-447.48640307,0.00037276,7]
[342662870,1732027902561,-160.20028232,0.00037276,7]
[342662871,1732027902571,-195.78455287,0.00037276,7]
[342662872,1732027902581,-865.44,0.00037294,2]
[342662873,1732027902591,-1526.6,0.00037294,2]
[342662874,1732027902600,-181.111913,0.00037298,120]
[342662875,1732027902610,-1557.8,0.0003733,120]
[342662876,1732027902620,-29500.0,0.0003733,8]
[342662877,1732027902629,-150.0,0.00037366,7]
[342662878,1732027902638,-181.111913,0.00037398,120]
[342662879,1732027902648,-2000.0,0.00037405,120]
[342662880,1732027902658,-325.32,0.00037431,2]
[342662881,1732027902668,-433.2,0.00037431,2]
[342662882,1732027902677,-300.0,0.00037431,2]
[342662883,1732027902687,-1935.78,0.00037431,2]
[342662884,1732027902697,-150.0,0.00037431,2]
[342662885,1732027902706,-362.52,0.00037431,2]
[342662886,1732027902716,-362.52,0.00037431,2]
[342662887,1732027902725,-362.34,0.00037431,2]
[342662888,1732027902735,-500.0,0.00037443,30]
[342662889,1732027902744,-11086.2429251,0.00037473,3]
[342662890,1732027902755,-40000.0,0.0003749,11]
[342662891,1732027902764,-151.0,0.0003749,7]
[342662892,1732027902774,-151.0,0.0003749,7]
[342662893,1732027902784,-158.982263,0.0003749,7]
[342662894,1732027902796,-158.982272,0.0003749,7]
[342662895,1732027902806,-399.598778,0.0003749,7]
[342662896,1732027902815,-399.598773,0.0003749,7]
[342662897,1732027902825,-192.112459,0.0003749,7]
[342662898,1732027902834,-192.112457,0.0003749,7]
[342662899,1732027902844,-462.25,0.0003749,7]
[342662900,1732027902854,-462.25,0.0003749,7]
[342662901,1732027902863,-181.111913,0.00037498,120]
[342662902,1732027902873,-151.0,0.00037534,120]
[342662903,1732027902884,-43200.0,0.0003755,8]
[342662904,1732027902894,-151.0,0.0003755,7]
[342662905,1732027902905,-417.319908,0.0003755,7]
[342662906,1732027902916,-417.319908,0.0003755,7]
[342662907,1732027902926,-447.48640307,0.0003757,7]
[342662908,1732027902937,-160.20028232,0.0003757,7]
[342662909,1732027902947,-195.78455287,0.0003757,7]
[342662910,1732027902956,-4145.10861895,0.0003759,2]
[342662911,1732027902966,-239.580428,0.0003759,7]
[342662912,1732027902975,-239.580425,0.0003759,7]
[342662913,1732027902985,-181.111913,0.00037598,120]
[342662914,1732027902994,-1000.0,0.000376,15]
[342662915,1732027903004,-1000.0,0.000376,15]
[342662916,1732027903014,-61284.85,0.0003765,9]
[342662917,1732027903023,-467.597874,0.0003765,7]
[342662918,1732027903032,-467.597883,0.0003765,7]
[342662919,1732027903045,-242.540746,0.0003765,7]
[342662920,1732027903055,-242.540739,0.0003765,7]
[342662921,1732027903064,-2000.0,0.00037673,31]
[342662922,1732027903074,-181.111913,0.00037698,120]
[342662923,1732027903083,-3000.0,0.000377,2]
[342662924,1732027903093,-152.66,0.00037705,2]
[342662925,1732027903102,-150.0,0.00037705,2]
[342662926,1732027903112,-150.0,0.00037705,2]
[342662927,1732027903278,-1009.82,0.0003772,23]
[342662928,1732027903289,-500.0,0.00037747,30]
[342662929,1732027903299,-181.111913,0.00037798,120]
[342662930,1732027903307,-166.01394509,0.000378,2]
[342662931,1732027903317,-2000.0,0.000378,30]
[342662932,1732027903327,-500.0,0.00037807,60]
[342662933,1732027903337,-50000.0,0.0003786,10]
[342662934,1732027903349,-447.48640307,0.00037864,7]
[342662935,1732027903358,-160.20028232,0.00037864,7]
[342662936,1732027903367,-195.78455287,0.00037864,7]
[342662937,1732027903377,-150.0,0.00037864,7]
[342662938,1732027903386,-50000.0,0.0003787,5]
[342662939,1732027903395,-181.111913,0.00037898,120]
[342662940,1732027903404,-1000.0,0.000379,15]
[342662941,1732027903413,-1000.0,0.000379,15]
[342662942,1732027903424,-64357.13006763,0.000379,2]
[342662943,1732027903434,-166.543521,0.000379,7]
[342662944,1732027903444,-166.543521,0.000379,7]
[342662945,1732027903454,-1207.212369,0.000379,7]
[342662946,1732027903463,-1207.212369,0.000379,7]
[342662947,1732027903475,-877.73567,0.000379,7]
[342662948,1732027903484,-877.73567,0.000379,7]
[342662949,1732027903494,-151.0,0.000379,7]
[342662950,1732027903504,-261.431179,0.000379,7]
[342662951,1732027903515,-261.431179,0.000379,7]
[342662952,1732027903524,-225.286578,0.000379,7]
[342662953,1732027903534,-654.359303,0.000379,7]
[342662954,1732027903547,-654.359303,0.000379,7]
[342662955,1732027903556,-379.853201,0.000379,7]
[342662956,1732027903565,-379.853201,0.000379,7]
[342662957,1732027903574,-151.0,0.000379,7]
[342662958,1732027903583,-159.741565,0.000379,7]
[342662959,1732027903592,-159.741565,0.000379,7]
[342662960,1732027903601,-1098.619911,0.000379,7]
[342662961,1732027903610,-1098.619911,0.000379,7]
[342662962,1732027903619,-228.011085,0.000379,7]
[342662963,1732027903629,-228.011085,0.000379,7]
[342662964,1732027903638,-151.0,0.000379,7]
[342662965,1732027903647,-1701.719222,0.000379,7]
[342662966,1732027903656,-1701.719222,0.000379,7]
[342662967,1732027903667,-740.730375,0.000379,7]
[342662968,1732027903676,-740.730375,0.000379,7]
[342662969,1732027903685,-158.593645,0.000379,7]
[342662970,1732027903694,-158.593645,0.000379,7]
[342662971,1732027903703,-205.590034,0.000379,7]
[342662972,1732027903713,-205.590034,0.000379,7]
[342662973,1732027903722,-419.839689,0.000379,7]
[342662974,1732027903732,-625.07793,0.000379,7]
[342662975,1732027903742,-419.839689,0.000379,7]
[342662976,1732027903751,-625.07793,0.000379,7]
[342662977,1732027903761,-298.362701,0.000379,7]
[342662978,1732027903771,-298.362701,0.000379,7]
[342662979,1732027903780,-167.488161,0.000379,7]
[342662980,1732027903791,-167.488153,0.000379,7]
[342662981,1732027903801,-374.435502,0.000379,7]
[342662982,1732027903810,-374.435496,0.000379,7]
[342662983,1732027903819,-2142.500908,0.000379,7]
[342662984,1732027903828,-2142.500898,0.000379,7]
[342662985,1732027903838,-302.433536,0.000379,7]
[342662986,1732027903847,-302.433544,0.000379,7]
[342662987,1732027903856,-253.172762,0.000379,7]
[342662988,1732027903865,-253.172755,0.000379,7]
[342662989,1732027903874,-469.63876,0.000379,7]
[342662990,1732027903883,-469.638758,0.000379,7]
[342662991,1732027903892,-151.0,0.000379,7]
[342662992,1732027903902,-1353.867981,0.000379,7]
[342662993,1732027903911,-1353.867981,0.000379,7]
[342662994,1732027903920,-151.0,0.000379,7]
[342662995,1732027903930,-1308.35475,0.000379,7]
[342662996,1732027903938,-1308.35475,0.000379,7]
[342662997,1732027903948,-720.751891,0.000379,7]
[342662998,1732027903957,-720.751891,0.000379,7]
[342662999,1732027903967,-480.058897,0.000379,7]
[342663000,1732027903977,-480.058897,0.000379,7]
[342663001,1732027903986,-151.0,0.000379,7]
[342663002,1732027903995,-151.0,0.000379,7]
[342663003,1732027904005,-219.846201,0.000379,7]
[342663004,1732027904014,-219.846201,0.000379,7]
[342663005,1732027904024,-151.0,0.000379,7]
[342663006,1732027904033,-492.45,0.000379,7]
[342663007,1732027904046,-492.45,0.000379,7]
[342663008,1732027904056,-190.174607,0.000379,7]
[342663009,1732027904065,-584.547328,0.000379,7]
[342663010,1732027904074,-584.547328,0.000379,7]
[342663011,1732027904084,-209.479131,0.000379,7]
[342663012,1732027904093,-209.479131,0.000379,7]
[342663013,1732027904103,-649.373281,0.000379,7]
[342663014,1732027904112,-649.373281,0.000379,7]
[342663015,1732027904121,-450.757394,0.000379,7]
[342663016,1732027904130,-450.757394,0.000379,7]
[342663017,1732027904139,-4284.791342,0.000379,7]
[342663018,1732027904148,-4284.791342,0.000379,7]
[342663019,1732027904157,-168.500978,0.000379,7]
[342663020,1732027904167,-5218.185366,0.000379,7]
[342663021,1732027904176,-5218.185366,0.000379,7]
[342663022,1732027904186,-837.260889,0.000379,7]
[342663023,1732027904196,-837.260889,0.000379,7]
[342663024,1732027904205,-1216.387468,0.000379,7]
[342663025,1732027904215,-1216.387468,0.000379,7]
[342663026,1732027904224,-155.155781,0.000379,7]
[342663027,1732027904233,-155.155781,0.000379,7]
[342663028,1732027904243,-164.5695,0.000379,7]
[342663029,1732027904252,-164.5695,0.000379,7]
[342663030,1732027904262,-151.0,0.000379,7]
[342663031,1732027904273,-697.462973,0.000379,7]
[342663032,1732027904282,-697.462973,0.000379,7]
[342663033,1732027904294,-2734.916534,0.000379,7]
[342663034,1732027904304,-2734.916534,0.000379,7]
[342663035,1732027904313,-151.0,0.000379,7]
[342663036,1732027904322,-454.7,0.000379,7]
[342663037,1732027904331,-756.26922,0.000379,7]
[342663038,1732027904341,-491.910606,0.000379,7]
[342663039,1732027904355,-454.7,0.000379,7]
[342663040,1732027904366,-756.26922,0.000379,7]
[342663041,1732027904375,-491.910606,0.000379,7]
[342663042,1732027904385,-762.994621,0.000379,7]
[342663043,1732027904395,-762.994621,0.000379,7]
[342663044,1732027904404,-305.484838,0.000379,7]
[342663045,1732027904414,-276.859952,0.000379,7]
[342663046,1732027904425,-305.484838,0.000379,7]
[342663047,1732027904435,-276.859952,0.000379,7]
[342663048,1732027904444,-795.371889,0.000379,7]
[342663049,1732027904454,-795.371889,0.000379,7]
[342663050,1732027904465,-407.302831,0.000379,7]
[342663051,1732027904475,-407.302831,0.000379,7]
[342663052,1732027904486,-752.768844,0.000379,7]
[342663053,1732027904496,-752.768844,0.000379,7]
[342663054,1732027904508,-930.621483,0.000379,7]
[342663055,1732027904518,-262.646924,0.000379,7]
[342663056,1732027904528,-930.621483,0.000379,7]
[342663057,1732027904539,-262.646924,0.000379,7]
[342663058,1732027904548,-2573.487954,0.000379,7]
[342663059,1732027904558,-2573.487954,0.000379,7]
[342663060,1732027904568,-896.231189,0.000379,7]
[342663061,1732027904577,-896.231189,0.000379,7]
[342663062,1732027904587,-10000.0,0.000379,7]
[342663063,1732027904597,-10000.0,0.000379,7]
[342663064,1732027904607,-151.0,0.000379,7]
[342663065,1732027904617,-10000.0,0.000379,7]
[342663066,1732027904627,-10000.0,0.000379,7]
[342663067,1732027904637,-513.367611,0.000379,7]
[342663068,1732027904647,-10000.0,0.000379,7]
[342663069,1732027904656,-513.367611,0.000379,7]
[342663070,1732027904666,-10000.0,0.000379,7]
[342663071,1732027904675,-10000.0,0.000379,7]
[342663072,1732027904685,-163.655185,0.000379,7]
[342663073,1732027904695,-163.655185,0.000379,7]
[342663074,1732027904704,-500.0,0.000379,7]
[342663075,1732027904714,-500.0,0.000379,7]
[342663076,1732027904723,-312.196955,0.000379,7]
[342663077,1732027904733,-312.196955,0.000379,7]
[342663078,1732027904744,-547.483222,0.000379,7]
[342663079,1732027904753,-547.483222,0.000379,7]
[342663080,1732027904763,-151.0,0.000379,7]
[342663081,1732027904772,-187.75591,0.000379,7]
[342663082,1732027904782,-699.733326,0.00037919,7]
[342663083,1732027904793,-699.733326,0.00037919,7]
[342663084,1732027904803,-2000.0,0.00037919,120]
[342663085,1732027904811,-63000.0,0.0003793,12]
[342663086,1732027904821,-292.450624,0.0003793,7]
[342663087,1732027904831,-292.450624,0.0003793,7]
[342663088,1732027904841,-447.488631,0.0003793,7]
[342663089,1732027904851,-447.488631,0.0003793,7]
[342663090,1732027904860,-151.0,0.0003793,7]
[342663091,1732027904871,-600.0,0.0003793,7]
[342663092,1732027904881,-600.0,0.0003793,7]
[342663093,1732027904891,-159.576969,0.0003793,7]
[342663094,1732027904902,-159.576969,0.0003793,7]
[342663095,1732027904911,-4493.276102,0.0003793,7]
[342663096,1732027904920,-4493.276102,0.0003793,7]
[342663097,1732027904929,-474.793912,0.0003793,7]
[342663098,1732027904938,-474.793912,0.0003793,7]
[342663099,1732027904947,-571.912875,0.0003793,7]
[342663100,1732027904956,-571.912875,0.0003793,7]
[342663101,1732027904966,-600.054296,0.0003793,7]
[342663102,1732027904976,-600.054296,0.0003793,7]
[342663103,1732027904985,-40000.0,0.0003795,19]
[342663104,1732027904994,-156.70705385,0.00037973,2]
[342663105,1732027905003,-181.111913,0.00037998,120]
[342663106,1732027905012,-50000.0,0.00038,28]
[342663107,1732027905021,-50000.0,0.00038,38]
[342663108,1732027905030,-300.0,0.00038,60]
[342663109,1732027905040,-39128.51158428,0.00038,2]
[342663110,1732027905050,-199.999999,0.00038,120]
[342663111,1732027905060,-1799.99999905,0.00038,39]
[342663112,1732027905069,-1007.6351365,0.00038,30]
[342663113,1732027905078,-5299.32,0.00038,14]
[342663114,1732027905087,-1556.64283334,0.00038,120]
[342663115,1732027905096,-243.49466355,0.00038,120]
[342663116,1732027905105,-1800.0,0.00038,39]
[342663117,1732027905113,-500.0,0.00038,120]
[342663118,1732027905122,-1007.91194,0.00038,120]
[342663119,1732027905132,-1000.0,0.00038,60]
[342663120,1732027905141,-500.0,0.00038,120]
[342663121,1732027905150,-500.0,0.00038,120]
[342663122,1732027905158,-2509.59988249,0.00038,120]
[342663123,1732027905168,-10060.89474301,0.00038,120]
[342663124,1732027905177,-2100.0,0.00038,2]
[342663125,1732027905186,-250.0,0.00038,30]
[342663126,1732027905195,-51450.75,0.0003805,14]
[342663127,1732027905204,-181.111913,0.00038098,120]
[342663128,1732027905213,-150.0,0.00038112,7]
[342663129,1732027905222,-42000.0,0.0003812,6]
[342663130,1732027905231,-447.48640307,0.00038157,7]
[342663131,1732027905240,-160.20028232,0.00038157,7]
[342663132,1732027905249,-195.78455287,0.00038157,7]
[342663133,1732027905258,-36580.44,0.0003817,18]
[342663134,1732027905267,-474.18819131,0.00038174,120]
[342663135,1732027905276,-150.0,0.00038187,7]
[342663136,1732027905286,-181.111913,0.00038198,120]
[342663137,1732027905298,-1000.0,0.000382,15]
[342663138,1732027905307,-166.92609,0.000382,120]
[342663139,1732027905316,-50000.0,0.0003821,7]
[342663140,1732027905326,-422.2670682,0.00038221,120]
[342663141,1732027905335,-181.111913,0.00038298,120]
[342663142,1732027905347,-433.49631839,0.00038356,7]
[342663143,1732027905357,-594.72,0.00038356,30]
[342663144,1732027905366,-594.72,0.00038356,32]
[342663145,1732027905375,-594.72,0.00038356,34]
[342663146,1732027905385,-594.72,0.00038356,36]
[342663147,1732027905396,-594.72,0.00038356,38]
[342663148,1732027905405,-594.72,0.00038356,40]
[342663149,1732027905414,-594.72,0.00038356,42]
[342663150,1732027905429,-594.72,0.00038356,44]
[342663151,1732027905438,-594.72,0.00038356,46]
[342663152,1732027905448,-594.72,0.00038356,48]
[342663153,1732027905458,-594.72,0.00038356,50]
[342663154,1732027905467,-594.72,0.00038356,52]
[342663155,1732027905476,-594.72,0.00038356,54]
[342663156,1732027905486,-594.72,0.00038356,56]
[342663157,1732027905497,-594.72,0.00038356,58]
[342663158,1732027905506,-594.72,0.00038356,60]
[342663159,1732027905515,-594.72,0.00038356,62]
[342663160,1732027905524,-594.72,0.00038356,64]
[342663161,1732027905534,-594.72,0.00038356,66]
[342663162,1732027905546,-594.72,0.00038356,68]
[342663163,1732027905555,-4125.24,0.00038356,62]
[342663164,1732027905564,-594.72,0.00038356,68]
[342663165,1732027905573,-594.72,0.00038356,68]
[342663166,1732027905582,-594.72,0.00038356,68]
[342663167,1732027905591,-594.87821897,0.00038356,68]
[342663168,1732027905600,-500.0,0.00038356,3]
[342663169,1732027905609,-162.2492179,0.00038356,3]
[342663170,1732027905619,-181.111913,0.00038398,120]
[342663171,1732027905628,-10000.0,0.000384,120]
[342663172,1732027905638,-771.23349732,0.000384,33]
[342663173,1732027905647,-18075.71084193,0.000384,33]
[342663174,1732027905657,-2000.0,0.00038434,120]
[342663175,1732027905666,-447.48640307,0.00038451,7]
[342663176,1732027905676,-160.20028232,0.00038451,7]
[342663177,1732027905685,-195.78455287,0.00038451,7]
[342663178,1732027905694,-181.111913,0.00038498,120]
[342663179,1732027905703,-1000.0,0.000385,15]
[342663180,1732027905712,-309.86207286,0.000385,10]
[342663181,1732027905722,-1827.0644571,0.000385,120]
[342663182,1732027905731,-29500.0,0.000385,120]
[342663183,1732027905742,-234.9,0.000385,120]
[342663184,1732027905756,-234.9,0.000385,120]
[342663185,1732027905766,-234.9,0.000385,120]
[342663186,1732027905776,-205.16807555,0.00038517,120]
[342663187,1732027905786,-151.0,0.00038575,120]
[342663188,1732027905799,-181.111913,0.00038598,120]
[342663189,1732027905809,-181.111913,0.00038698,120]
[342663190,1732027905818,-150.0,0.000387,10]
[342663191,1732027905827,-1096.16,0.000387,30]
[342663192,1732027905838,-1058.71,0.00038741,2]
[342663193,1732027905847,-447.48640307,0.00038745,7]
[342663194,1732027905857,-160.20028232,0.00038745,7]
[342663195,1732027905867,-195.78455287,0.00038745,7]
[342663196,1732027905877,-181.111913,0.00038798,120]
[342663197,1732027905886,-1000.0,0.000388,15]
[342663198,1732027905896,-2000.0,0.000388,30]
[342663199,1732027905906,-150.0,0.00038858,7]
[342663200,1732027905915,-1801.00892378,0.0003888,90]
[342663201,1732027905925,-1945.342992,0.0003888,30]
[342663202,1732027905934,-934.7043601,0.0003888,120]
[342663203,1732027905944,-181.111913,0.00038898,120]
[342663204,1732027905953,-22332.88417843,0.000389,10]
[342663205,1732027905962,-31000.0,0.000389,120]
[342663206,1732027905972,-87219.40525537,0.000389,2]
[342663207,1732027905982,-1231.36239058,0.000389,120]
[342663208,1732027905993,-524.92826939,0.00038903,60]
[342663209,1732027906004,-150.0,0.00038941,7]
[342663210,1732027906013,-2000.0,0.00038948,120]
[342663211,1732027906022,-7323.64295149,0.0003899,14]
[342663212,1732027906033,-181.111913,0.00038998,120]
[342663213,1732027906044,-50000.0,0.00039,29]
[342663214,1732027906053,-50000.0,0.00039,39]
[342663215,1732027906062,-6000.0,0.00039,21]
[342663216,1732027906071,-255.4489346,0.00039,14]
[342663217,1732027906080,-14490.88452786,0.00039,2]
[342663218,1732027906089,-816.999999,0.00039,120]
[342663219,1732027906098,-305.97573409,0.00039,120]
[342663220,1732027906107,-1390.36517829,0.00039,120]
[342663221,1732027906116,-1800.0,0.00039,40]
[342663222,1732027906125,-500.0,0.00039,120]
[342663223,1732027906135,-212.3772973,0.00039,120]
[342663224,1732027906144,-5016.44647045,0.00039,30]
[342663225,1732027906153,-5000.0,0.00039,30]
[342663226,1732027906162,-7542.53221961,0.00039,30]
[342663227,1732027906171,-210.0,0.00039,2]
[342663228,1732027906181,-447.48640307,0.00039039,7]
[342663229,1732027906190,-160.20028232,0.00039039,7]
[342663230,1732027906200,-195.78455287,0.00039039,7]
[342663231,1732027906209,-151.0,0.00039041,120]
[342663232,1732027906218,-347.08317,0.00039088,7]
[342663233,1732027906227,-181.111913,0.00039098,120]
[342663234,1732027906236,-200.0,0.0003913,21]
[342663235,1732027906245,-1009.82,0.0003914,35]
[342663236,1732027906255,-181.111913,0.00039198,120]
[342663237,1732027906263,-347.08317,0.00039288,7]
[342663238,1732027906272,-181.111913,0.00039298,120]
[342663239,1732027906282,-447.48640307,0.00039332,7]
[342663240,1732027906291,-160.20028232,0.00039332,7]
[342663241,1732027906300,-195.78455287,0.00039332,7]
[342663242,1732027906309,-181.111913,0.00039398,120]
[342663243,1732027906318,-575.99765886,0.000394,30]
[342663244,1732027906327,-250000.0,0.000394,120]
[342663245,1732027906336,-13177.17001076,0.0003942,14]
[342663246,1732027906346,-203.60134086,0.00039452,120]
[342663247,1732027906357,-2000.0,0.00039463,120]
[342663248,1732027906365,-398.0669246,0.0003948,120]
[342663249,1732027906374,-16536.0,0.00039483,117]
[342663250,1732027906384,-347.08317,0.00039488,7]
[342663251,1732027906394,-181.111913,0.00039498,120]
[342663252,1732027906404,-1000.0,0.000395,15]
[342663253,1732027906412,-166.92609,0.000395,120]